bitfinex-derivatives/quotes_ETHF0:USTF0_20241013
["timestamp","ask_amount","ask_price","bid_price","bid_amount"]
[1728795852834,7.18971744,2464.8,2464.7,0.379]
[1728795853026,7.59548744,2464.8,2464.7,0.379]
[1728795853535,7.18971744,2464.8,2464.7,0.379]
[1728795855134,7.59548744,2464.8,2464.7,0.379]
[1728795855637,11.65308744,2464.8,2464.7,0.379]
[1728795855935,17.65308744,2464.8,2464.7,0.379]
[1728795856139,14.99117,2464.8,2464.7,0.379]
[1728795856529,18.18547093,2464.8,2464.7,0.379]
[1728795857331,14.99117,2464.8,2464.7,0.379]
[1728795858340,14.99117,2464.8,2464.7,0.4556]
[1728795858541,11.78337,2464.8,2464.7,0.4556]
[1728795858739,14.99117,2464.8,2464.7,0.4556]
[1728795859734,11.78337,2464.8,2464.7,0.4556]
[1728795859944,14.99117,2464.8,2464.7,0.4556]
[1728795863046,11.78337,2464.8,2464.7,0.4556]
[1728795863339,14.99117,2464.8,2464.7,0.4556]
[1728795863941,11.78337,2464.8,2464.7,0.4556]
[1728795864341,14.99117,2464.8,2464.7,0.4556]
[1728795866132,11.78337,2464.8,2464.7,0.4556]
[1728795866334,14.99117,2464.8,2464.7,0.4556]
[1728795867542,11.78337,2464.8,2464.7,0.4556]
[1728795867741,14.99117,2464.8,2464.7,0.4556]
[1728795868955,11.78337,2464.8,2464.7,0.4556]
[1728795869248,14.99117,2464.8,2464.7,0.4556]
[1728795873847,11.78337,2464.8,2464.7,0.4556]
[1728795874048,14.99117,2464.8,2464.7,0.4556]
[1728795874746,15.9054,2464.8,2464.4,0.4222]
[1728795874945,8.3798332,2464.5,2464.4,0.4222]
[1728795875750,6.25362,2464.5,2464.4,0.4222]
[1728795878648,0.40583,2464.4,2464.3,0.4175]
[1728795878848,5.58868278,2464.4,2464.3,0.4175]
[1728795880650,8.79648278,2464.4,2464.3,0.4175]
[1728795888357,5.58868278,2464.4,2464.3,0.4175]
[1728795888653,8.79648278,2464.4,2464.3,0.4175]
[1728795892249,6.25363,2464.4,2464.3,0.4175]
[1728795892445,8.79309816,2464.4,2464.3,0.4175]
[1728795893253,6.66573,2464.4,2464.3,0.4175]
[1728795894055,0.40585,2464.3,2464.2,0.402]
[1728795894357,4.78381651,2464.3,2464.2,0.402]
[1728795900258,2.12605,2464.3,2464.2,0.402]
[1728795900460,5.7786,2464.3,2464.0,0.3992]
[1728795900660,0.4059,2464.0,2463.9,0.4013]
[1728795900869,0.40593,2463.8,2463.7,0.8312]
[1728795901166,4.93373,2463.8,2463.7,1.2325]
[1728795901364,7.06254494,2463.8,2463.7,1.2325]
[1728795902672,6.65661494,2463.8,2463.7,1.2325]
[1728795903061,4.5278,2463.8,2463.7,1.2325]
[1728795903462,6.12369175,2463.8,2463.7,1.2325]
[1728795903869,6.12366567,2463.8,2463.7,1.2325]
[1728795904164,6.12366259,2463.8,2463.7,1.2325]
[1728795910672,5.59104474,2463.8,2463.7,1.63845]
[1728795910974,4.5278,2463.8,2463.7,1.63845]
[1728795912069,3.2078,2463.8,2463.7,7.01765]
[1728795912571,4.5278,2463.8,2463.7,7.01765]
[1728795913669,4.5278,2463.8,2463.7,8.08172591]
[1728795914066,3.2078,2463.8,2463.7,8.08172591]
[1728795914267,3.2078,2463.8,2463.7,15.3206437]
[1728795914468,3.2078,2463.8,2463.7,16.26643421]
[1728795914667,3.2078,2463.8,2463.7,16.77407748]
[1728795915371,5.59104474,2464.1,2463.7,16.36812748]
[1728795915572,5.59104474,2464.1,2464.0,1.32]
[1728795915873,4.5278,2464.1,2464.0,1.7259]
[1728795916064,5.59104474,2464.1,2464.0,2.1362]
[1728795916270,4.5278,2464.1,2464.0,2.1362]
[1728795916470,4.5278,2464.1,2464.0,6.1946]
[1728795917675,5.59104474,2464.1,2464.0,6.1946]
[1728795917874,4.5278,2464.1,2464.0,6.1946]
[1728795918667,4.5278,2464.1,2464.0,6.5855]
[1728795918868,4.5278,2464.1,2464.0,6.1796]
[1728795919068,5.59104474,2464.1,2464.0,6.1796]
[1728795920474,5.59104474,2464.1,2464.0,4.8596]
[1728795925977,5.59104474,2464.1,2464.0,1.1867]
[1728795931072,4.5278,2464.1,2464.0,1.1867]
[1728795931671,5.59104474,2464.1,2464.0,1.1867]
[1728795935482,5.59104474,2464.1,2464.0,0.7958]
[1728795936681,5.59104474,2464.1,2464.0,2.1158]
[1728795936682,4.27104474,2464.1,2464.0,2.1158]
[1728795936876,1.32,2464.1,2464.0,3.5839752]
[1728795937074,1.32,2464.1,2464.0,3.87106601]
[1728795937879,1.32,2464.1,2464.0,3.46516601]
[1728795938079,1.32,2464.1,2464.0,3.87106601]
[1728795938786,1.32,2464.1,2464.0,3.46516601]
[1728795938982,1.32,2464.1,2464.0,3.87106601]
[1728795940288,1.32,2464.1,2464.0,3.5839752]
[1728795940684,1.32,2464.1,2464.0,3.87102389]
[1728795940884,1.32,2464.1,2464.0,3.46512389]
[1728795941097,1.32,2464.1,2464.0,3.1780752]
[1728795941297,1.32,2464.1,2464.0,3.8710139]
[1728795942200,1.32,2464.1,2464.0,3.1780752]
[1728795942497,1.32,2464.1,2464.0,3.5839752]
[1728795944092,1.32,2464.1,2464.0,3.1780752]
[1728795944991,1.32,2464.1,2464.0,3.5839752]
[1728795945298,1.32,2464.1,2464.0,7.6423752]
[1728795945488,1.7201,2464.2,2464.0,7.6423752]
[1728795945693,1.46344474,2464.3,2464.1,5.78427]
[1728795945893,0.4002,2464.3,2464.1,3.1980452]
[1728795946200,3.6296,2464.4,2464.2,2.3822752]
[1728795946499,3.6296,2464.4,2464.3,2.52345]
[1728795946898,3.6296,2464.4,2464.3,3.5857252]
[1728795949906,3.6296,2464.4,2464.3,7.6433252]
[1728795952198,4.9496,2464.4,2464.3,7.6433252]
[1728795952400,4.9496,2464.4,2464.3,3.5857252]
[1728795952906,4.9496,2464.4,2464.3,6.58105]
[1728795953207,4.9496,2464.4,2464.3,2.52345]
[1728795953399,4.9496,2464.4,2464.3,3.5857252]
[1728795953702,3.6296,2464.4,2464.3,7.6433252]
[1728795953900,3.2078,2464.4,2464.3,7.93026306]
[1728795954097,3.2078,2464.4,2464.3,9.16887565]
[1728795955602,3.2078,2464.4,2464.3,9.82936499]
[1728795955913,3.2078,2464.4,2464.3,10.3368789]
[1728795956201,3.2078,2464.4,2464.3,17.3247446]
[1728795956411,3.2078,2464.4,2464.3,20.81721516]
[1728795956998,3.2078,2464.4,2464.3,18.69280259]
[1728795957209,3.2078,2464.4,2464.3,22.66939845]
[1728795957411,3.2078,2464.4,2464.3,18.69258783]
[1728795958708,3.2078,2464.4,2464.3,20.01258783]
[1728795958912,3.2078,2464.4,2464.3,20.01234282]
[1728795960015,3.2078,2464.4,2464.3,18.69234282]
[1728795960312,3.2078,2464.4,2464.3,20.81547309]
[1728795960700,3.2078,2464.4,2464.3,18.69234282]
[1728795960914,3.2078,2464.4,2464.3,18.69080817]
[1728795961116,3.2078,2464.4,2464.3,20.81394259]
[1728795961621,3.2078,2464.4,2464.3,20.30630451]
[1728795962008,3.2078,2464.4,2464.3,20.81378976]
[1728795962406,3.2078,2464.4,2464.3,20.81377853]
[1728795962606,3.2078,2464.4,2464.3,20.00181335]
[1728795962809,3.2078,2464.4,2464.3,11.32258601]
[1728795963211,1.742,2464.6,2464.3,10.91673601]
[1728795963416,1.742,2464.6,2464.5,2.78705423]
[1728795963716,1.742,2464.6,2464.5,4.02517085]
[1728795963919,1.742,2464.6,2464.5,6.84465423]
[1728795964109,2.1308,2464.6,2464.5,6.84465423]
[1728795964508,2.1308,2464.6,2464.5,2.78705423]
[1728795965415,2.1308,2464.6,2464.5,6.84465423]
[1728795965609,2.1308,2464.6,2464.5,2.78705423]
[1728795967804,2.1308,2464.6,2464.5,6.84465423]
[1728795968221,2.1308,2464.6,2464.5,2.78705423]
[1728795969021,2.1308,2464.6,2464.5,6.84465423]
[1728795971008,2.1308,2464.6,2464.5,7.29480931]
[1728795972713,2.1308,2464.6,2464.5,3.23720931]
[1728795973409,2.1308,2464.6,2464.5,7.29480931]
[1728795974817,0.8108,2464.6,2464.5,7.29480931]
[1728795975011,0.8108,2464.6,2464.5,8.53159397]
[1728795975215,0.8108,2464.6,2464.5,7.29480931]
[1728795976425,0.8108,2464.6,2464.5,8.53166913]
[1728795978015,0.8108,2464.6,2464.5,2.78705423]
[1728795978420,0.8108,2464.6,2464.5,4.02404565]
[1728795979522,0.8108,2464.6,2464.5,2.78705423]
[1728795979833,0.8108,2464.6,2464.5,4.02383426]
[1728795980019,0.8108,2464.6,2464.5,4.31039095]
[1728795980329,0.8108,2464.6,2464.5,2.78705423]
[1728795982226,0.8108,2464.6,2464.5,4.31085675]
[1728795983227,0.8108,2464.6,2464.5,4.31087952]
[1728795983922,0.8108,2464.6,2464.5,3.24964529]
[1728795984120,0.8108,2464.6,2464.5,4.84149664]
[1728795984623,0.8108,2464.6,2464.5,4.84184501]
[1728795985332,0.8108,2464.6,2464.5,4.96871412]
[1728795985532,0.8108,2464.6,2464.5,3.64871412]
[1728795985726,2.1308,2464.6,2464.5,2.99119913]
[1728795985926,2.1308,2464.6,2464.5,1.46702547]
[1728795986727,2.1308,2464.6,2464.5,2.7048759]
[1728795987425,2.1308,2464.6,2464.5,2.99168035]
[1728795988425,0.8108,2464.6,2464.5,3.52232623]
[1728795988934,0.8108,2464.6,2464.5,3.64919798]
[1728795989328,0.8108,2464.6,2464.5,3.64957164]
[1728795990231,0.8108,2464.6,2464.5,4.15706256]
[1728795990744,0.8108,2464.6,2464.5,4.15706194]
[1728795991231,0.8108,2464.6,2464.5,4.15757614]
[1728795993242,0.8108,2464.6,2464.5,4.6170558]
[1728795993432,0.8108,2464.6,2464.5,3.02520445]
[1728795994045,0.8108,2464.6,2464.5,3.02578709]
[1728795994540,0.8108,2464.6,2464.5,2.39183102]
[1728795994841,1.87404474,2464.6,2464.5,4.62024894]
[1728795995043,1.87404474,2464.6,2464.5,3.02619624]
[1728795998236,1.87404474,2464.6,2464.5,3.22919422]
[1728795998439,1.87404474,2464.6,2464.5,5.35232864]
[1728795999038,1.87404474,2464.6,2464.5,5.35289664]
[1728795999242,1.87404474,2464.6,2464.5,6.16488407]
[1728796000437,1.87404474,2464.6,2464.5,8.64538911]
[1728796001940,1.87404474,2464.6,2464.5,8.64600216]
[1728796003645,1.87404474,2464.6,2464.5,8.64696299]
[1728796005543,1.87404474,2464.6,2464.5,8.64696088]
[1728796006147,2.40666259,2464.6,2464.5,8.64696088]
[1728796006351,1.87599058,2464.6,2464.5,8.64696088]
[1728796006550,0.8108,2464.6,2464.5,8.64696088]
[1728796006950,2.40666259,2464.6,2464.5,8.64696088]
[1728796007150,0.8108,2464.6,2464.5,8.64696088]
[1728796007450,1.87597967,2464.6,2464.5,8.64696088]
[1728796008548,1.87597967,2464.6,2464.5,8.64781442]
[1728796009348,1.87597967,2464.6,2464.5,7.835851]
[1728796009852,1.87597967,2464.6,2464.5,8.64783657]
[1728796013048,2.40666259,2464.6,2464.5,8.64792389]
[1728796013248,2.40666259,2464.6,2464.5,4.92562823]
[1728796013556,2.40666259,2464.6,2464.5,8.64792557]
[1728796013749,0.8108,2464.6,2464.5,8.64792557]
[1728796013950,2.40666259,2464.6,2464.5,8.64792557]
[1728796016654,2.40666259,2464.6,2464.5,8.64793898]
[1728796019356,2.40666259,2464.6,2464.5,6.16640742]
[1728796019747,2.40666259,2464.6,2464.5,8.64801609]
[1728796020354,0.8108,2464.6,2464.5,8.64802436]
[1728796021259,2.40666259,2464.6,2464.5,8.64802436]
[1728796021956,0.8108,2464.6,2464.5,8.64802436]
[1728796022158,0.8108,2464.6,2464.5,8.64809887]
[1728796022159,2.40666259,2464.6,2464.5,8.64809887]
[1728796022748,2.40666259,2464.6,2464.5,8.24227887]
[1728796023061,8.72301494,2464.6,2464.5,3.22660827]
[1728796023364,8.72301494,2464.6,2464.4,1.06399975]
[1728796023365,9.25527706,2464.6,2464.4,1.06399975]
[1728796023566,4.5278,2464.5,2464.3,1.06399975]
[1728796023765,1.7414,2464.4,2464.3,1.59583885]
[1728796024062,4.25816014,2464.4,2464.3,3.22678047]
[1728796024265,4.25816014,2464.4,2464.3,2.71922942]
[1728796024450,2.128,2464.4,2464.3,1.47826003]
[1728796025163,2.128,2464.4,2464.3,1.35136714]
[1728796026256,2.128,2464.4,2464.3,1.06384662]
[1728796026457,3.72460028,2464.4,2464.3,1.06384662]
[1728796029353,3.72460028,2464.4,2464.2,2.38384662]
[1728796029551,1.06406412,2464.3,2464.2,2.38384662]
[1728796029755,1.06406412,2464.3,2464.2,4.03721555]
[1728796030052,1.06406412,2464.3,2464.2,3.91032113]
[1728796030258,1.06406412,2464.3,2464.2,4.03721454]
[1728796030466,1.06406412,2464.3,2464.2,3.91032113]
[1728796030662,1.06406412,2464.3,2464.2,4.44308498]
[1728796030960,1.06406412,2464.5,2464.4,0.40583]
[1728796031158,1.06406412,2464.6,2464.5,0.40582]
[1728796031359,1.32,2464.6,2464.5,2.16011415]
[1728796031664,1.32,2464.6,2464.5,3.75281513]
[1728796031665,1.733,2464.6,2464.5,3.75281513]
[1728796031859,1.733,2464.6,2464.5,4.15863513]
[1728796032467,1.733,2464.6,2464.5,4.97133513]
[1728796032669,1.733,2464.6,2464.5,6.29133513]
[1728796034255,1.733,2464.6,2464.5,6.29112751]
[1728796034753,1.733,2464.6,2464.5,6.2911212]
[1728796036360,1.733,2464.6,2464.5,6.29108815]
[1728796037370,1.733,2464.6,2464.5,6.75016032]
[1728796037667,1.733,2464.6,2464.5,5.1573428]
[1728796037965,1.733,2464.6,2464.5,4.64977698]
[1728796038170,1.733,2464.6,2464.5,5.15726105]
[1728796039875,1.733,2464.6,2464.5,4.97041616]
[1728796040470,1.733,2464.6,2464.5,5.42946193]
[1728796040973,1.733,2464.6,2464.5,3.83707696]
[1728796041674,1.733,2464.6,2464.5,2.45676128]
[1728796041873,1.733,2464.6,2464.5,4.9701587]
[1728796042963,1.733,2464.6,2464.5,4.9453587]
[1728796044667,1.733,2464.6,2464.5,4.94527031]
[1728796045277,1.733,2464.6,2464.5,4.94527261]
[1728796046565,1.733,2464.6,2464.5,3.75155261]
[1728796046566,2.1388,2464.6,2464.5,3.75155261]
[1728796046763,2.1388,2464.6,2464.2,2.65681062]
[1728796046764,13.92076014,2464.6,2464.2,1.06158872]
[1728796046965,5.59175652,2464.3,2464.2,1.06158872]
[1728796047372,5.99105652,2464.3,2464.1,1.06158872]
[1728796047565,1.32,2464.2,2464.1,1.06158872]
[1728796047767,1.32,2464.2,2464.1,2.83079575]
[1728796047967,1.32,2464.2,2464.1,3.33838376]
[1728796048976,1.32,2464.2,2464.1,2.83079575]
[1728796049178,1.32,2464.2,2464.1,1.2386238]
[1728796049476,1.32,2464.2,2464.1,2.30033456]
[1728796050475,1.32,2464.2,2464.1,2.30003414]
[1728796051579,1.32,2464.2,2464.1,1.06171076]
[1728796051881,4.5278,2464.2,2464.1,2.29994643]
[1728796052374,4.5278,2464.2,2464.1,1.06171076]
[1728796054573,4.9496,2464.2,2464.1,1.06171076]
[1728796057571,1.7418,2464.2,2464.1,1.06171076]
[1728796057777,4.9496,2464.2,2464.1,1.06171076]
[1728796060483,1.7418,2464.2,2464.1,1.06171076]
[1728796060693,4.9496,2464.2,2464.1,1.06171076]
[1728796063991,1.7418,2464.2,2464.1,1.06171076]
[1728796064192,4.9496,2464.2,2464.1,1.06171076]
[1728796065096,10.60393478,2464.2,2463.8,1.59217195]
[1728796065294,4.5278,2463.9,2463.6,1.59217195]
[1728796065500,1.32,2463.7,2463.6,1.59217195]
[1728796065804,1.32,2463.7,2463.6,3.24295487]
[1728796066093,1.32,2463.7,2463.6,1.52386416]
[1728796066497,1.32,2463.7,2463.5,2.39474195]
[1728796066697,1.32,2463.6,2463.5,1.98877195]
[1728796066891,1.32,2463.6,2463.5,4.14267775]
[1728796067194,1.32,2463.6,2463.5,3.63497636]
[1728796067992,1.32,2463.6,2463.5,4.14267096]
[1728796068188,1.32,2463.6,2463.5,3.63497636]
[1728796068400,1.32,2463.6,2463.5,4.04095636]
[1728796068600,1.7258,2463.6,2463.5,4.04095636]
[1728796069002,1.7258,2463.6,2463.5,2.32185907]
[1728796069204,1.7258,2463.6,2463.5,3.91403102]
[1728796069494,1.7258,2463.6,2463.5,2.32185907]
[1728796069702,1.7258,2463.6,2463.5,2.32137167]
[1728796070094,1.32,2463.6,2463.5,2.32137167]
[1728796070302,1.32,2463.6,2463.5,3.91354362]
[1728796070505,1.32,2463.6,2463.5,2.32137167]
[1728796071001,1.32,2463.6,2463.5,2.03563032]
[1728796071202,1.32,2463.6,2463.5,2.32120429]
[1728796071404,1.32,2463.6,2463.5,0.80258]
[1728796071905,1.32,2463.6,2463.5,2.03542175]
[1728796072201,1.32,2463.6,2463.5,0.80258]
[1728796074405,1.32,2463.7,2463.5,0.80258]
[1728796075501,1.32,2463.7,2463.6,0.40597]
[1728796076106,1.32,2463.7,2463.5,0.80257]
[1728796077401,1.32,2463.7,2463.6,0.40597]
[1728796081111,3.2078,2463.8,2463.6,5.3792]
[1728796081408,3.2078,2463.8,2463.7,2.13315]
[1728796081596,3.2078,2463.8,2463.7,3.36496026]
[1728796081801,3.2078,2463.8,2463.7,9.3016424]
[1728796082616,1.32,2463.9,2463.8,0.40593]
[1728796082801,1.32,2463.9,2463.8,1.20203]
[1728796084709,2.162,2464.1,2463.9,0.40591]
[1728796084901,2.162,2464.1,2464.0,0.4244]
[1728796094308,2.162,2464.1,2463.9,1.99809195]
[1728796094508,1.32,2464.0,2463.9,1.99809195]
[1728796094718,1.32,2464.0,2463.9,3.23843579]
[1728796096415,1.32,2464.0,2463.9,3.74605778]
[1728796097111,1.32,2464.0,2463.9,1.71907806]
[1728796097318,1.32,2464.0,2463.9,3.74620277]
[1728796097509,1.32,2464.0,2463.9,3.23858156]
[1728796097711,1.32,2464.0,2463.9,3.74620503]
[1728796098213,1.32,2464.0,2463.9,4.15212503]
[1728796098418,1.32,2464.0,2463.9,3.74620503]
[1728796098615,1.32,2464.0,2463.9,4.15212503]
[1728796099022,0.4236,2464.1,2464.0,0.4059]
[1728796099212,1.7436,2464.1,2464.0,3.23858156]
[1728796099720,1.7436,2464.1,2464.0,3.74618256]
[1728796100811,1.7436,2464.1,2464.0,3.74616064]
[1728796101319,1.7436,2464.1,2464.0,4.15206064]
[1728796101712,3.2078,2464.2,2464.0,7.98960705]
[1728796101911,4.5278,2464.2,2464.1,6.84859808]
[1728796102218,4.5278,2464.2,2464.1,11.30309808]
[1728796102516,4.5278,2464.2,2464.1,9.17996366]
[1728796102920,1.32,2464.2,2464.1,11.30309808]
[1728796103620,1.32,2464.2,2464.1,9.17996366]
[1728796104720,1.32,2464.2,2464.1,6.98169525]
[1728796104922,1.32,2464.2,2464.1,8.72232398]
[1728796105423,0.3859,2464.4,2464.1,9.17933095]
[1728796105720,0.3859,2464.4,2464.2,4.14573276]
[1728796105721,1.32,2464.3,2464.2,4.14573276]
[1728796107123,1.32,2464.3,2464.2,4.55160276]
[1728796107422,1.32,2464.3,2464.2,5.87160276]
[1728796108222,1.32,2464.3,2464.2,5.46573276]
[1728796108423,1.32,2464.3,2464.2,4.54566594]
[1728796108610,1.32,2464.3,2464.2,4.95805136]
[1728796108815,1.32,2464.3,2464.2,5.46559271]
[1728796109015,1.32,2464.3,2464.2,4.14559271]
[1728796110023,1.32,2464.3,2464.2,5.46559271]
[1728796110323,0.3859,2464.4,2464.2,5.46559271]
[1728796110622,1.7059,2464.4,2464.3,1.32]
[1728796111820,1.7059,2464.4,2464.2,2.39845878]
[1728796111821,1.7059,2464.4,2464.2,3.71845878]
[1728796116527,1.32,2464.3,2464.2,3.71845878]
[1728796116728,1.32,2464.3,2464.2,5.36259862]
[1728796118235,1.32,2464.3,2464.2,5.87013328]
[1728796118525,1.32,2464.3,2464.2,5.36259862]
[1728796119527,1.32,2464.3,2464.2,5.87013218]
[1728796120028,1.32,2464.3,2464.2,5.36259862]
[1728796120230,1.32,2464.3,2464.2,5.87013902]
[1728796121132,0.3859,2464.4,2464.2,9.92853902]
[1728796121432,0.3859,2464.4,2464.3,1.23213008]
[1728796121634,0.3859,2464.4,2464.3,1.51752213]
[1728796122132,4.5278,2464.5,2464.3,7.30096213]
[1728796122334,4.5278,2464.5,2464.4,0.4103]
[1728796122538,4.5278,2464.5,2464.4,1.21463]
[1728796122726,4.5278,2464.5,2464.4,2.44667138]
[1728796123134,4.5278,2464.5,2464.4,2.73206006]
[1728796123335,4.5278,2464.5,2464.4,2.73206275]
[1728796124632,4.5278,2464.5,2464.4,2.32623275]
[1728796126127,4.5278,2464.5,2464.4,2.32656393]
[1728796126740,4.5278,2464.5,2464.4,2.04117256]
[1728796127033,4.5278,2464.5,2464.4,1.91630921]
[1728796127234,4.5278,2464.5,2464.3,1.59108878]
[1728796127438,1.32,2464.4,2464.3,1.59108878]
[1728796127633,1.32,2464.4,2464.3,1.51805632]
[1728796127825,1.32,2464.4,2464.3,3.1091451]
[1728796128030,1.32,2464.4,2464.3,3.23602952]
[1728796130430,1.32,2464.4,2464.3,3.10915788]
[1728796130630,1.32,2464.4,2464.3,3.23604235]
[1728796131135,1.32,2464.4,2464.3,3.74357789]
[1728796131935,1.32,2464.4,2464.3,3.10915788]
[1728796132135,1.32,2464.4,2464.3,3.2360426]
[1728796132334,1.32,2464.4,2464.3,1.5180691]
[1728796134338,1.32,2464.4,2464.3,1.51812897]
[1728796135235,1.32,2464.4,2464.3,1.64501415]
[1728796135436,1.32,2464.4,2464.3,3.23610293]
[1728796136743,1.32,2464.4,2464.3,3.74364097]
[1728796138043,1.32,2464.4,2464.3,3.743641]
[1728796140540,1.32,2464.4,2464.3,2.15349143]
[1728796141245,1.32,2464.4,2464.3,3.01669756]
[1728796141547,1.32,2464.4,2464.3,2.61084756]
[1728796141745,1.32,2464.4,2464.3,3.01669756]
[1728796142944,1.32,2464.4,2464.3,2.61084756]
[1728796143241,1.32,2464.4,2464.3,2.81386188]
[1728796143640,1.32,2464.4,2464.3,4.9369963]
[1728796143843,1.32,2464.4,2464.3,5.13983198]
[1728796144039,1.32,2464.4,2464.3,5.1404065]
[1728796144235,1.32,2464.4,2464.3,3.22028725]
[1728796144441,1.32,2464.4,2464.3,5.34342167]
[1728796144937,4.27111822,2464.5,2464.3,5.01400664]
[1728796145134,1.88781822,2464.6,2464.4,8.01574551]
[1728796145338,0.4222,2464.6,2464.5,6.55593926]
[1728796145539,2.80551822,2464.6,2464.5,6.95883926]
[1728796145735,6.01331822,2464.6,2464.5,6.14681216]
[1728796146447,6.01331822,2464.6,2464.5,6.95882259]
[1728796147444,6.01331822,2464.6,2464.5,7.77858179]
[1728796147644,6.01331822,2464.6,2464.5,8.92045435]
[1728796147846,6.01331822,2464.6,2464.5,9.42795327]
[1728796148237,6.01331822,2464.6,2464.5,9.02213327]
[1728796148547,6.01331822,2464.6,2464.5,7.57574401]
[1728796148740,6.01331822,2464.6,2464.5,7.94912499]
[1728796149045,5.59111822,2464.6,2464.5,8.35494499]
[1728796149348,5.59111822,2464.6,2464.5,10.74769136]
[1728796150042,4.27111822,2464.6,2464.5,7.87293548]
[1728796150248,6.01101822,2464.6,2464.5,7.87293548]
[1728796150850,6.01101822,2464.6,2464.5,10.3418802]
[1728796151247,6.01101822,2464.6,2464.5,7.87293373]
[1728796152252,6.01101822,2464.6,2464.5,7.87290617]
[1728796152843,6.01101822,2464.6,2464.5,5.48006661]
[1728796153541,6.01101822,2464.6,2464.5,5.47997434]
[1728796154550,6.01101822,2464.6,2464.5,7.94866337]
[1728796154747,6.01101822,2464.6,2464.5,5.47997434]
[1728796154944,2.80321822,2464.6,2464.5,5.47997434]
[1728796156644,2.80321822,2464.6,2464.5,7.87280198]
[1728796157246,2.80321822,2464.6,2464.5,7.87279633]
[1728796157548,2.80321822,2464.6,2464.5,7.0607951]
[1728796157742,2.80321822,2464.6,2464.5,7.8727944]
[1728796157951,2.80321822,2464.6,2464.5,5.7412921]
[1728796158149,2.80321822,2464.6,2464.5,6.55329308]
[1728796158339,2.80321822,2464.6,2464.5,6.55314702]
[1728796158948,6.01101822,2464.6,2464.5,5.75024702]
[1728796159153,6.01101822,2464.6,2464.5,2.61210801]
[1728796160446,6.01101822,2464.6,2464.5,2.61214759]
[1728796161048,2.80321822,2464.6,2464.5,1.74179653]
[1728796161244,4.69101822,2464.6,2464.5,2.61214793]
[1728796161447,6.01101822,2464.6,2464.5,2.61214793]
[1728796163054,2.80321822,2464.6,2464.5,2.61214793]
[1728796164855,2.80321822,2464.6,2464.5,2.10460995]
[1728796165154,2.80321822,2464.6,2464.5,2.61212326]
[1728796166754,2.80321822,2464.6,2464.5,2.61213044]
[1728796167250,2.80321822,2464.6,2464.5,3.2209554]
[1728796167451,1.06331822,2464.6,2464.5,3.01795044]
[1728796167662,1.06331822,2464.6,2464.5,6.15609091]
[1728796167851,1.06331822,2464.6,2464.5,6.15611051]
[1728796168051,1.06331822,2464.6,2464.5,8.6247301]
[1728796168452,1.06331822,2464.6,2464.5,6.15611051]
[1728796168647,1.06331822,2464.6,2464.5,5.08278826]
[1728796168851,6.12277734,2464.7,2464.5,5.08278826]
[1728796168852,5.59111822,2464.7,2464.6,0.4058]
[1728796169054,4.27111822,2464.7,2464.6,4.3379265]
[1728796169250,5.59111822,2464.7,2464.6,4.3379265]
[1728796170154,5.59111822,2464.7,2464.6,3.0179265]
[1728796172452,5.59111822,2464.7,2464.6,2.51015107]
[1728796172649,5.59111822,2464.7,2464.6,3.01762562]
[1728796172846,1.06331822,2464.7,2464.6,3.01762562]
[1728796173059,2.38331822,2464.7,2464.6,3.01762562]
[1728796173562,2.38331822,2464.7,2464.6,3.0176295]
[1728796173952,1.87411822,2464.8,2464.6,5.3437515]
[1728796174151,2.38331822,2464.7,2464.6,0.4058]
[1728796174359,2.38331822,2464.7,2464.6,3.01719792]
[1728796177259,1.32,2464.7,2464.6,3.01719792]
[1728796177462,1.32,2464.7,2464.6,3.01713357]
[1728796178159,1.32,2464.7,2464.6,5.79961226]
[1728796178355,1.32,2464.7,2464.6,3.4734872]
[1728796178556,1.32,2464.7,2464.6,5.59662162]
[1728796178764,2.38331822,2464.7,2464.6,3.4734872]
[1728796179860,1.32,2464.7,2464.6,4.72663671]
[1728796180171,1.32,2464.7,2464.6,6.71374756]
[1728796180961,1.32,2464.7,2464.6,7.11954756]
[1728796181466,1.87411822,2464.8,2464.6,7.52570393]
[1728796181467,3.19411822,2464.8,2464.6,7.52570393]
[1728796181664,3.19411822,2464.8,2464.7,3.74630155]
[1728796181860,2.38331822,2464.8,2464.7,3.74630155]
[1728796182064,2.38331822,2464.8,2464.7,4.97180155]
[1728796182266,2.38331822,2464.8,2464.7,4.97179927]
[1728796182569,2.38331822,2464.8,2464.7,3.83678942]
[1728796182863,2.38331822,2464.8,2464.7,4.97176833]
[1728796183263,2.38331822,2464.8,2464.7,5.42908964]
[1728796183564,2.38331822,2464.8,2464.7,5.4290834]
[1728796183767,2.38331822,2464.8,2464.7,4.97178784]
[1728796184167,2.38331822,2464.8,2464.7,5.42913799]
[1728796184355,2.38331822,2464.8,2464.7,5.42911772]
[1728796184562,2.38331822,2464.8,2464.7,3.83683539]
[1728796185664,1.06331822,2464.8,2464.7,5.15683539]
[1728796185861,1.06331822,2464.8,2464.7,4.81948518]
[1728796186161,2.38331822,2464.8,2464.7,5.56261763]
[1728796186862,2.38331822,2464.8,2464.7,5.56266004]
[1728796187466,2.38331822,2464.8,2464.7,5.15687847]
[1728796187866,2.38331822,2464.8,2464.7,3.83687847]
[1728796189057,2.38331822,2464.8,2464.7,4.24265847]
[1728796189668,2.38331822,2464.8,2464.7,3.83687847]
[1728796190065,2.38331822,2464.8,2464.7,6.16299558]
[1728796190271,2.38331822,2464.8,2464.7,6.97492368]
[1728796191671,2.38331822,2464.8,2464.7,6.16310366]
[1728796192073,2.38331822,2464.8,2464.7,6.16310125]
[1728796194476,2.38331822,2464.8,2464.7,6.16308281]
[1728796195176,2.38331822,2464.8,2464.7,5.09010518]
[1728796195374,2.38331822,2464.8,2464.7,5.6556634]
[1728796195568,1.06331822,2464.8,2464.7,6.97503091]
[1728796195775,2.38331822,2464.8,2464.7,6.1631149]
[1728796196477,2.38331822,2464.8,2464.7,6.16297478]
[1728796198975,2.38331822,2464.8,2464.7,6.16294926]
[1728796199379,1.44881822,2464.9,2464.7,8.70065697]
[1728796199576,0.3855,2464.9,2464.8,6.2574433]
[1728796199773,0.3855,2464.9,2464.8,7.06933836]
[1728796200277,0.3855,2464.9,2464.8,5.74933836]
[1728796200678,0.3855,2464.9,2464.8,5.74917133]